fUSD/lending_fUSD_20240121
["ID","MTS","AMOUNT","RATE_DAILY","PERIOD"]
[312422526,1705869038503,-204.0,0.0003216,2]
[312422528,1705869038512,-174.78669016,0.00032474,2]
[312422530,1705869038521,-1000.0,0.00032484,2]
[312422532,1705869038531,-657.92308016,0.000325,2]
[312422534,1705869038541,-658.71,0.00032877,15]
[312422536,1705869038550,-157.74,0.00032925,2]
[312422538,1705869038560,-155.0,0.00033,4]
[312422540,1705869038570,-173.29,0.00033059,2]
[312422542,1705869038582,-150.0,0.00033283,7]
[312422544,1705869038591,-150.0,0.00033283,7]
[312422546,1705869038600,-295.33,0.00033461,2]
[312422549,1705869038611,-204.0,0.0003358,2]
[312422551,1705869038621,-1000.0,0.000337,2]
[312422553,1705869038630,-1347.98228686,0.00033898,20]
[312422555,1705869038640,-342.88383656,0.00033899,4]
[312422557,1705869038651,-500.0,0.00034,2]
[312422559,1705869038661,-1000.0,0.00034,4]
[312422561,1705869038671,-310.0,0.00034198,7]
[312422563,1705869038680,-157.74,0.00034868,2]
[312422565,1705869038690,-204.0,0.0003499,2]
[312422567,1705869038699,-205.17549248,0.00035,10]
[312422656,1705869039508,-17934.01473815,0.00035,10]
[312422658,1705869039518,-150.0,0.00035,2]
[312422660,1705869039527,-164.33,0.00035102,2]
[312422662,1705869039536,-295.33,0.00035105,2]
[312422664,1705869039547,-237.6812224,0.00035548,2]
[312422666,1705869039557,-1000.0,0.000358,15]
[312422668,1705869039567,-153.53099359,0.000358,2]
[312422670,1705869039576,-174.78669016,0.0003589,2]
[312422672,1705869039587,-174.78669016,0.0003589,2]
[312422674,1705869039596,-174.78669016,0.0003589,2]
[312422676,1705869039606,-174.78669016,0.0003589,2]
[312422678,1705869039615,-938.3806,0.0003589,4]
[312422681,1705869039627,-7854.04288455,0.000359,2]
[312422684,1705869039647,-837.14,0.000359,2]
[312422687,1705869039667,-2345.49457667,0.000359,2]
[312422691,1705869039690,-10457.25,0.000359,2]
[312422693,1705869039704,-5700.0,0.000359,2]
[312422695,1705869039715,-631.98004047,0.000359,2]
[312422697,1705869039726,-365.78351,0.000359,2]
[312422700,1705869039756,-52931.6451356,0.000359,2]
[312422701,1705869039768,-41915.19866609,0.000359,2]
[312422943,1705869042132,-4903.65746557,0.00022847,2]
[312422946,1705869042145,-3572.58377723,0.00022847,2]
[312422948,1705869042156,-391.0305,0.00022847,2]
[312422950,1705869042172,-303.84007919,0.00022847,2]
[312422953,1705869042184,-12555.6,0.00022847,2]
[312422955,1705869042195,-388.19382264,0.00022847,2]
[312422959,1705869042223,-1458.89627204,0.00022847,2]
[312422967,1705869042282,-1017.80621206,0.00022847,2]
[312422974,1705869042343,-415.4439594,0.00022847,2]
[312422976,1705869042352,-245.43076029,0.000359,2]
[312423030,1705869042808,-279.603,0.000359,2]
[312423033,1705869042819,-26719.49882633,0.000359,2]
[312423036,1705869042829,-212.87,0.000359,2]
[312423039,1705869042838,-512.27818094,0.00035905,2]
[312423042,1705869042847,-649.1472296,0.00035905,8]
[312423043,1705869042856,-155.37011482,0.00035999,4]
[312423044,1705869042865,-140150.75415254,0.00036,7]
[312423045,1705869042876,-11019.28611887,0.00036,7]
[312423046,1705869042992,-302.23,0.00036,7]
[312423047,1705869043003,-300.1,0.00036,7]
[312423050,1705869043015,-301.132,0.00036,7]
[312423052,1705869043026,-274.264,0.00036,7]
[312423054,1705869043037,-309.865,0.00036,7]
[312423056,1705869043049,-536.28001313,0.00036,7]
[312423059,1705869043061,-750.0,0.00036,7]
[312423061,1705869043072,-1569.31678199,0.00036,7]
[312423063,1705869043083,-390.60683015,0.00036,7]
[312423343,1705869045948,-276.36,0.00034216,2]
[312423344,1705869045958,-861.45188775,0.00035999,4]
[312423347,1705869046006,-442.55508434,0.00035999,4]
[312423349,1705869046015,-1066.28532123,0.00035999,4]
[312423351,1705869046025,-271426.45919595,0.00036,7]
[312423353,1705869046034,-152.12837504,0.00036005,2]
[312423355,1705869046043,-153.53099355,0.00036016,2]
[312423357,1705869046052,-1000.0,0.00036093,2]
[312423359,1705869046061,-153.53099355,0.00036232,2]
[312423360,1705869046070,-240.89,0.00036232,2]
[312423362,1705869046078,-204.0,0.000364,2]
[312423364,1705869046087,-203.0,0.000364,2]
[312423366,1705869046097,-11017.5973492,0.00036447,9]
[312423368,1705869046106,-153.53099355,0.00036447,2]
[312423370,1705869046115,-276.36,0.0003648,2]
[312423372,1705869046126,-1866.934848,0.00036582,30]
[312423374,1705869046135,-658.71,0.00036613,15]
[312423376,1705869046145,-153.53099355,0.00036663,2]
[312423378,1705869046154,-295.33,0.00036749,2]
[312423380,1705869046163,-157.74,0.00036811,2]
[312423382,1705869046172,-156387.70780864,0.00036822,2]
[312423383,1705869046185,-15554.36025754,0.00036822,2]
[312423387,1705869127766,205.4518,0.00019492,2]
[312423388,1705869581719,171.47,0.00016712,2]
[312423411,1705870165710,544.00662593,0.00016712,2]
[312423421,1705870232262,-250.0,0.000219,2]
[312423423,1705870232272,-534.17302211,0.00025,2]
[312423425,1705870232283,-465.82697789,0.00025,2]
[312423427,1705870232293,-1249.5542374,0.00025,2]
[312423429,1705870232302,-202.12254127,0.00025,2]
[312423430,1705870232311,-167.46550336,0.00025403,2]
[312423431,1705870232321,-279.32271034,0.00025403,2]
[312423432,1705870232330,-41.20009001,0.00025404,2]
[312423433,1705870232351,-262.40824748,0.00025404,2]
[312423434,1705870232361,-324.19508938,0.00025404,2]
[312423436,1705870232375,-833.65349942,0.00025404,2]
[312423438,1705870232387,-383.23600317,0.00025404,2]
[312423439,1705870232398,-800.0,0.00025404,2]
[312423440,1705870232414,-609.86344662,0.00025404,2]
[312423441,1705870232427,-2049.05196141,0.00025404,2]
[312423442,1705870232436,-321.57002398,0.00025405,2]
[312423443,1705870232457,-612.53098806,0.00025405,2]
[312423444,1705870232466,-1584.83662852,0.00025406,2]
[312423445,1705870232476,-9.63917309,0.00025407,2]
[312423446,1705870232488,-149.11650829,0.00025407,2]
[312423447,1705870232497,-164.33,0.00025416,2]
[312423448,1705870232506,-127.05397386,0.00026,2]
[312423449,1705870232522,-303.88,0.00026,2]
[312423450,1705870232534,-69.06602614,0.00026,2]
[312423451,1705870232545,-150.0,0.00026073,2]
[312423452,1705870232554,-150.0,0.00026073,2]
[312423453,1705870232564,-154.73295288,0.00026081,2]
[312423454,1705870232573,-883.02391387,0.000262,2]
[312423455,1705870232585,-362.73325483,0.000262,2]
[312423456,1705870232597,-553.31996326,0.000262,2]
[312423457,1705870232613,-1549.92286804,0.000262,2]
[312423458,1705870232623,-689.60722481,0.000262,2]
[312423459,1705870232633,-457.37,0.000262,2]
[312423460,1705870232643,-330.28,0.000262,2]
[312423461,1705870232653,-218.34785309,0.0002629,2]
[312423462,1705870232662,-175.74,0.0002629,2]
[312423463,1705870232672,-150.99,0.0002629,2]
[312423464,1705870232682,-203.09146154,0.00026299,2]
[312423465,1705870232691,-3458.87793752,0.000263,2]
[312423466,1705870232704,-28846.12206248,0.000263,2]
[312423467,1705870232714,-154.73295269,0.00026808,2]
[312423468,1705870232723,-416.19937194,0.00027,2]
[312423469,1705870232733,-155.0,0.00027,2]
[312423470,1705870232743,-8000.0,0.000274,2]
[312423471,1705870232752,-154.73295269,0.00027535,2]
[312423472,1705870232762,-28194.72773081,0.00028,2]
[312423473,1705870232772,-688.92857397,0.00028,2]
[312423474,1705870232782,-320.97,0.00028188,2]
[312423475,1705870232792,-499.99,0.00028188,2]
[312423476,1705870232802,-154.73295269,0.00028261,2]
[312423477,1705870232811,-7458.0,0.000288,2]
[312423478,1705870232821,-154.73295269,0.00028988,2]
[312423479,1705870232831,-154.73295269,0.00029715,2]
[312423480,1705870232841,-731.25712485,0.000298,2]
[312423481,1705870232851,-175.58250697,0.000298,2]
[312423482,1705870232861,-310.16,0.00029881,2]
[312423483,1705870232871,-764.11347582,0.0003,4]
[312423484,1705870232881,-2359.04794661,0.0003,2]
[312423485,1705870232890,-155.0,0.0003,2]
[312423486,1705870232900,-242.65242995,0.0003,2]
[312423487,1705870232910,-216.44416005,0.0003,20]
[312423488,1705870232919,-1576.19999324,0.0003,4]
[312423489,1705870232929,-582.6484227,0.0003,2]
[312423490,1705870232939,-2418.34856453,0.0003,2]
[312423495,1705870237901,-158.75568138,0.00025,2]
[312423496,1705870237911,-246.71133022,0.0003,2]
[312423497,1705870237923,-4401.08588356,0.0003,2]
[312423498,1705870237947,-2573.42332655,0.0003,2]
[312423499,1705870237956,-691.92895757,0.0003,2]
[312423500,1705870237969,-7458.0,0.000301,2]
[312423501,1705870237979,-750.0,0.000301,2]
[312423502,1705870237988,-3367.91,0.00030184,2]
[312423503,1705870237997,-4268.31,0.00030184,2]
[312423504,1705870238007,-154.73295269,0.00030442,2]
[312423505,1705870238016,-154.73295269,0.00031169,2]
[312423506,1705870238026,-250.0,0.00031315,2]
[312423507,1705870238036,-248.41,0.00031316,2]
[312423508,1705870238048,-214.0,0.00031365,2]
[312423509,1705870238057,-426.0,0.00031365,2]
[312423510,1705870238067,-235.0,0.00031365,2]
[312423511,1705870238077,-2274.0,0.00031365,2]
[312423512,1705870238086,-157.083,0.00031365,2]
[312423513,1705870238095,-150.0,0.00031365,2]
[312423514,1705870238104,-250.0,0.00031365,2]
[312423515,1705870238113,-153.255,0.00031365,2]
[312423516,1705870238122,-162.881,0.00031365,2]
[312423517,1705870238131,-150.0,0.00031365,2]
[312423518,1705870238140,-150.258,0.00031365,2]
[312423519,1705870238149,-259.65,0.00031365,2]
[312423520,1705870238158,-206.763,0.00031365,2]
[312423521,1705870238167,-4909.79030899,0.0003168,2]
[312423522,1705870238177,-171.19,0.00031712,2]
[312423523,1705870238186,-12166.73,0.00031788,2]
[312423524,1705870238195,-600.0,0.00031886,2]
[312423525,1705870238204,-154.73295269,0.00031895,2]
[312423526,1705870238214,-310.16,0.00032145,2]
[312423527,1705870238223,-250.0,0.00032167,2]
[312423528,1705870238233,-157.03,0.00032453,2]
[312423529,1705870238242,-161.11,0.00032483,2]
[312423530,1705870238252,-657.92308016,0.000325,2]
[312423531,1705870238261,-150.0,0.00032527,2]
[312423533,1705870238270,-154.73295269,0.00032622,2]
[312423535,1705870238279,-161.11,0.00032637,2]
[312423537,1705870238289,-161.11,0.00032791,2]
[312423539,1705870238299,-548.92,0.00032877,15]
[312423541,1705870238308,-164.09,0.00032919,2]
[312423543,1705870238318,-464.62,0.00032925,2]
[312423545,1705870238327,-161.11,0.00032945,2]
[312423547,1705870238336,-3537.36413758,0.00032952,2]
[312423549,1705870238348,-6541.41794213,0.00032952,2]
[312423551,1705870238359,-13811.21792029,0.00032952,2]
[312423553,1705870238368,-156.27,0.00032993,2]
[312423555,1705870238377,-161.11,0.00033099,2]
[312423557,1705870238386,-161.11,0.00033253,2]
[312423560,1705870238396,-167.0,0.00033307,2]
[312423561,1705870238406,-154.73295269,0.00033349,2]
[312423563,1705870238416,-161.11,0.00033407,2]
[312423566,1705870238427,-171.99,0.00033511,2]
[312423567,1705870238437,-161.11,0.00033561,2]
[312423569,1705870238447,-161.11,0.00033715,2]
[312423572,1705870238456,-171.99,0.00033846,2]
[312423573,1705870238465,-161.11,0.00033868,2]
[312423575,1705870238474,-1000.0,0.00034,4]
[312423578,1705870238484,-500.0,0.00034,2]
[312423579,1705870238494,-161.11,0.00034022,2]
[312423582,1705870238504,-154.73295269,0.00034076,2]
[312423583,1705870238513,-157.13,0.00034173,2]
[312423585,1705870238522,-161.11,0.00034176,2]
[312423587,1705870238531,-171.99,0.00034181,2]
[312423589,1705870238540,-697.51118737,0.00034335,4]
[312423591,1705870238549,-400.0,0.00034336,2]
[312423593,1705870238558,-150.0,0.00034365,2]
[312423595,1705870238567,-310.16,0.00034409,2]
[312423597,1705870238576,-157.03,0.00034488,2]
[312423599,1705870238585,-150.0,0.0003454,7]
[312423602,1705870238594,-150.0,0.0003454,7]
[312423604,1705870238603,-464.62,0.00034568,2]
[312423606,1705870238612,-152.99,0.00034618,2]
[312423607,1705870238621,-152.99,0.00034664,2]
[312423609,1705870238631,-204.0,0.00034709,2]
[312423611,1705870238640,-152.99,0.0003471,2]
[312423613,1705870238648,-152.99,0.00034756,2]
[312423615,1705870238657,-152.99,0.00034802,2]
[312423617,1705870238666,-154.73295269,0.00034802,2]
[312423619,1705870238675,-152.99,0.00034849,2]
[312423621,1705870238685,-500.0,0.0003488,2]
[312423623,1705870238693,-152.99,0.00034895,2]
[312423625,1705870238702,-152.99,0.00034941,2]
[312423627,1705870238712,-1245.40466885,0.0003498,4]
[312423629,1705870238721,-433.9656394,0.00034981,2]
[312423631,1705870238730,-152.99,0.00034987,2]
[312423633,1705870238739,-18139.19023063,0.00035,10]
[312423635,1705870238748,-152.99,0.00035033,2]
[312423637,1705870238757,-152.99,0.00035079,2]
[312423639,1705870238766,-152.99,0.00035126,2]
[312423641,1705870238775,-152.99,0.00035172,2]
[312423643,1705870238784,-152.99,0.00035218,2]
[312423645,1705870238793,-152.99,0.00035264,2]
[312423647,1705870238802,-152.99,0.0003531,2]
[312423649,1705870238811,-544.45125247,0.00035347,4]
[312423651,1705870238820,-3190.09672447,0.00035347,2]
[312423653,1705870238830,-154.73295269,0.00035529,2]
[312423655,1705870238838,-689.60722482,0.00035617,4]
[312423657,1705870238847,-600.0,0.00035872,2]
[312423659,1705870238856,-180.94,0.000359,2]
[312423662,1705870238870,-312.262056,0.00035905,7]
[312423664,1705870238879,-346.93689193,0.00035998,4]
[312423666,1705870238888,-185.05485877,0.00035998,4]
[312423668,1705870238897,-1915.56857103,0.00035998,4]
[312423670,1705870238907,-155.0,0.00035998,4]
[312423672,1705870238917,-504.03826774,0.00035998,4]
[312423674,1705870238926,-248.80090434,0.00035998,4]
[312423676,1705870238935,-274.94541818,0.00035998,4]
[312423678,1705870238944,-1262.39631924,0.00035998,4]
[312423680,1705870238954,-101178.57735413,0.00036,7]
[312423682,1705870238969,-21909.83553501,0.00036,7]
[312423684,1705870238979,-152.12455637,0.00036005,2]
[312423686,1705870238988,-464.62,0.00036212,2]
[312423688,1705870238999,-154.73295269,0.00036256,2]
[312423690,1705870239008,-157.13,0.00036316,2]
[312423692,1705870239017,-3041.56015619,0.00036452,4]
[312423694,1705870239027,-11017.5973492,0.00036517,9]
[312423696,1705870239036,-157.03,0.00036523,2]
[312423698,1705870239046,-200.0,0.00036527,15]
[312423700,1705870239055,-150.0,0.00036606,2]
[312423702,1705870239064,-1866.934848,0.00036609,30]
[312423704,1705870239073,-548.92,0.00036613,15]
[312423706,1705870239082,-310.16,0.00036672,2]
[312423708,1705870239091,-605.87074772,0.00036701,9]
[312423710,1705870239100,-22035.1946984,0.00036745,9]
[312423712,1705870239109,-11017.5973492,0.00036782,9]
[312423714,1705870239119,-404.0,0.0003679,3]
[312423716,1705870239128,-11017.5973492,0.0003679,9]
[312423718,1705870239137,-33052.7920475,0.00036791,9]
[312423720,1705870239146,-300.0,0.000368,13]
[312423722,1705870239155,-11017.5973492,0.000368,10]
[312423724,1705870239164,-66105.5840951,0.00036801,10]
[312423727,1705870239175,-11017.5973492,0.0003681,10]
[312423729,1705870239184,-75412.81337706,0.00036811,10]
[312423731,1705870239197,-56798.35481294,0.00036811,10]
[312423733,1705870239206,-11017.5973492,0.00036812,10]
[312423735,1705870239216,-805.0,0.00036819,5]
[312423737,1705870239225,-324.50523867,0.00036819,4]
[312423739,1705870239234,-1332.42027005,0.00036819,2]
[312423741,1705870239244,-263.27773987,0.00036819,4]
[312423743,1705870239253,-164.06048249,0.00036819,4]
[312423745,1705870239262,-24312.16676934,0.0003682,4]
[312423747,1705870239271,-155.0,0.0003682,4]
[312423749,1705870239280,-284.88868145,0.0003682,4]
[312423751,1705870239289,-399.46213699,0.0003682,4]
[312423753,1705870239298,-155.18764232,0.0003682,4]
[312423755,1705870239308,-3234.95429051,0.0003682,4]
[312423757,1705870239317,-404.2638852,0.0003682,4]
[312423759,1705870239326,-155.19642721,0.0003682,4]
[312423761,1705870239335,-833.38613946,0.0003682,4]
[312423763,1705870239345,-200.74699033,0.0003682,4]
[312423765,1705870239354,-217.86619671,0.00036821,4]
[312423767,1705870239364,-164.0104164,0.00036821,4]
[312423769,1705870239377,-258.77909786,0.00036821,4]
[312423771,1705870239386,-1043.85511686,0.00036821,4]
[312423773,1705870239395,-155.14895346,0.00036821,4]
[312423775,1705870239405,-1608.71393111,0.00036821,4]
[312423777,1705870239414,-198698.28097332,0.00036821,2]
[312423781,1705870239439,-734.65291283,0.00036821,2]
[312423784,1705870239460,-9094.10907792,0.00036821,2]
[312423787,1705870239471,-646.42422695,0.00036821,2]
[312423789,1705870239487,-948.984565,0.00036821,2]
[312423792,1705870239498,-265.25707154,0.00036821,2]
[312423794,1705870239509,-620.15941707,0.00036821,2]
[312423796,1705870239520,-315.19030927,0.00036821,2]
[312423798,1705870239531,-678.22150474,0.00036821,2]
[312423801,1705870239542,-366.85,0.00036821,2]
[312423803,1705870239553,-5136.62864425,0.00036821,2]
[312423805,1705870239564,-5146.03801409,0.00036821,2]
[312423807,1705870239575,-36834.93463719,0.00036821,2]
[312423809,1705870239585,-200.0,0.00036822,2]
[312423811,1705870239594,-3004.11480193,0.00036822,9]
[312423813,1705870239603,-3420.11881211,0.00036822,5]
[312423815,1705870239613,-5840.82062477,0.00036822,4]
[312423817,1705870239622,-5840.82062477,0.00036822,4]
[312423819,1705870239631,-3000.0,0.00036822,2]
[312423821,1705870239640,-11017.5973492,0.00036841,10]
[312423823,1705870239649,-157.71,0.00036851,2]
[312423825,1705870239658,-700.0,0.000369,13]
[312423828,1705870239667,-150.57983552,0.000369,2]
[312423830,1705870239678,-150.00000001,0.00036962,7]
[312423832,1705870239688,-166.776333,0.00036962,10]
[312423834,1705870239697,-154.73295269,0.00036983,2]
[312423836,1705870239706,-11017.5973492,0.00036993,10]
[312423838,1705870239716,-700.0,0.00037,2]
[312423840,1705870239729,-5985.29554333,0.00037,3]
[312423842,1705870239741,-1086.93189934,0.00037,3]
[312423845,1705870239754,-2927.77255733,0.00037,3]
[312423847,1705870239763,-7595.84153667,0.00037013,11]
[312423850,1705870239787,-1991.92152284,0.00037013,11]
[312423852,1705870239796,-2890.46204683,0.00037013,11]
[312423855,1705870239807,-1663.72540644,0.00037013,11]
[312423857,1705870239817,-914.69628226,0.00037013,8]
[312423859,1705870239829,-2224.97989414,0.00037013,8]
[312423861,1705870239838,-1376.22010586,0.00037013,10]
[312423864,1705870239861,-437.70943335,0.00037013,10]
[312423867,1705870239875,-415.94592852,0.00037013,10]
[312423985,1705870241091,-3634.93099348,0.00037013,10]
[312423987,1705870241101,-6334.90373652,0.00037013,11]
[312423989,1705870241110,-200.0,0.00037062,15]
[312423991,1705870241120,-200.0,0.00037062,15]
[312423994,1705870241130,-312.26205594,0.00037102,8]
[312423996,1705870241141,-150.57983549,0.000372,2]
[312423998,1705870241151,-150.57983549,0.000375,2]
[312424000,1705870241160,-150.62584698,0.00037521,2]
[312424002,1705870241170,-200.0,0.00037595,15]
[312424004,1705870241179,-800.0,0.00037595,15]
[312424006,1705870241188,-800.0,0.00037595,15]
[312424008,1705870241199,-800.0,0.00037596,15]
[312424010,1705870241208,-800.0,0.00037596,15]
[312424012,1705870241217,-154.73295269,0.0003771,2]
[312424014,1705870241226,-2000.0,0.0003779,4]
[312424016,1705870241236,-4108.27131304,0.00037798,11]
[312424018,1705870241247,-150.57983549,0.000378,2]
[312424020,1705870241256,-204.0,0.0003782,2]
[312424022,1705870241266,-203.0,0.0003782,2]
[312424024,1705870241276,-464.62,0.00037856,2]
[312424026,1705870241286,-564.0,0.0003789,3]
[312424028,1705870241298,-2237.70895589,0.0003789,2]
[312424030,1705870241309,-1208.97682585,0.0003789,2]
[312424032,1705870241319,-664.1717713,0.00037896,2]
[312424034,1705870241329,-31218.3202604,0.00037896,2]
[312424036,1705870241339,-150.84165777,0.00037898,2]
[312424038,1705870241350,-3298.13430336,0.00037898,2]
[312424040,1705870241361,-10524.21011333,0.00037899,4]
[312424042,1705870241375,-212.8984188,0.00037899,4]
[312424044,1705870241386,-265.08803931,0.00037899,4]
[312424046,1705870241396,-649.22390048,0.00037899,4]
[312424048,1705870241406,-877.83142003,0.00037899,4]
[312424050,1705870241417,-500.0,0.00037899,2]
[312424052,1705870241426,-574.024066,0.000379,2]
[312424054,1705870241435,-2061.858372,0.000379,6]
[312424056,1705870241445,-1000.0,0.000379,13]
[312424058,1705870241454,-490856.218224,0.000379,2]
[312424060,1705870241464,-180.285497,0.00037901,2]
[312424062,1705870241473,-98171.2436449,0.00037917,2]
[312424064,1705870241483,-98171.2436449,0.0003799,2]
[312424066,1705870241493,-402.26131326,0.00037998,4]
[312424068,1705870241502,-155.0,0.00037998,2]
[312424070,1705870241511,-506.48212579,0.00037998,4]
[312424072,1705870241521,-100000.0,0.00038,8]
[312424074,1705870241530,-150.57983549,0.000381,2]
[312424076,1705870241539,-1116.41568023,0.000382,4]
[312424078,1705870241549,-508.90507024,0.000382,4]
[312424080,1705870241559,-312.26205594,0.00038299,8]
[312424082,1705870241569,-150.57983549,0.000384,2]
[312424084,1705870241579,-154.73295269,0.00038436,2]
[312424086,1705870241588,-4108.27131302,0.00038437,11]
[312424088,1705870241597,-500.0,0.00038447,2]
[312424090,1705870241607,-157.13,0.00038459,2]
[312424092,1705870241618,-181.24792049,0.00038518,5]
[312424094,1705870241628,-366.25051405,0.00038518,6]
[312424096,1705870241638,-287.4558249,0.00038518,6]
[312424098,1705870241647,-179.02111724,0.00038518,6]
[312424100,1705870241656,-244.64487813,0.00038535,5]
[312424102,1705870241666,-157.03,0.00038558,2]
[312424104,1705870241675,-7999.99,0.00038628,28]
[312424106,1705870241685,-400.0,0.00038628,2]
[312424108,1705870241694,-150.57983549,0.000387,2]
[312424110,1705870241706,-167.0,0.00038804,2]
[312424112,1705870241715,-30391.60257745,0.000389,20]
[312424114,1705870241724,-310.16,0.00038936,2]
[312424116,1705870241736,-281.99182628,0.0003898,2]
[312424118,1705870241746,-100000.0,0.00039,9]
[312424120,1705870241756,-1428.71461591,0.00039,2]
[312424122,1705870241765,-169.30978566,0.00039,4]
[312424124,1705870241775,-6930.47895105,0.00039,2]
[312424126,1705870241784,-4130.8035136,0.00039,4]
[312424128,1705870241794,-237.26198864,0.00039,2]
[312424130,1705870241803,-150.0,0.00039,2]
[312424132,1705870241812,-257.08,0.00039,30]
[312424134,1705870241822,-256.70459311,0.00039,20]
[312424136,1705870241831,-310.0,0.00039,2]
[312424138,1705870241841,-150.57983549,0.00039,2]
[312424141,1705870241851,-4108.27131302,0.00039077,12]
[312424143,1705870241860,-257.08,0.00039137,30]
[312424145,1705870241872,-154.73295269,0.00039163,2]
[312424147,1705870241881,-257.0,0.0003919,2]
[312424149,1705870241890,-204.0,0.0003923,2]
[312424151,1705870241900,-203.0,0.0003923,2]
[312424153,1705870241910,-257.08,0.00039274,30]
[312424155,1705870241922,-150.57983549,0.000393,4]
[312424157,1705870241932,-257.08,0.00039411,30]
[312424159,1705870241941,-312.26205594,0.00039496,9]
[312424161,1705870241952,-464.62,0.000395,2]
[312424163,1705870241965,-150.0,0.00039548,2]
[312424188,1705870242168,-257.08,0.00039548,30]
[312424193,1705870242231,-150.57983549,0.000396,5]
[312424195,1705870242241,-257.08,0.00039685,30]
[312424197,1705870242250,-4108.27131302,0.00039716,13]
[312424199,1705870242260,-204.0,0.00039767,13]
[312424201,1705870242269,-302.70781983,0.00039822,30]
[312424203,1705870242278,-600.0,0.00039858,2]
[312424205,1705870242287,-154.73295269,0.0003989,2]
[312424207,1705870242298,-375.25537711,0.000399,4]
[312424209,1705870242307,-1400.0,0.000399,14]
[312424211,1705870242316,-150.57983549,0.000399,6]
[312424213,1705870242329,-100000.0,0.0004,10]
[312424215,1705870242339,-301.26295697,0.0004,14]
[312424217,1705870242349,-155.0,0.0004,2]
[312424219,1705870242359,-3232.46889612,0.0004,30]
[312424221,1705870242369,-22022.85823354,0.0004,4]
[312424222,1705870242379,-757.16320082,0.0004,4]
[312424223,1705870242390,-2678.17811978,0.0004,4]
[312424225,1705870242400,-1082.62057108,0.0004,10]
[312424227,1705870242410,-201.58424432,0.0004,4]
[312424229,1705870242419,-310034.4656866,0.0004,5]
[312424232,1705870242429,-54264.43228568,0.0004,4]
[312424234,1705870242439,-6287.54443503,0.0004,4]
[312424236,1705870242449,-1084.09238932,0.0004,4]
[312424238,1705870242458,-2797.57385779,0.0004,5]
[312424240,1705870242468,-257.66516504,0.0004,4]
[312424242,1705870242478,-2269.30418644,0.0004,4]
[312424244,1705870242487,-75290.89570122,0.0004,15]
[312424246,1705870242497,-454.00659403,0.0004,2]
[312424248,1705870242507,-961.17155342,0.0004,3]
[312424250,1705870242517,-169.64,0.0004,7]
[312424252,1705870242527,-602.95,0.0004,7]
[312424254,1705870242537,-255.0,0.0004,12]
[312424256,1705870242547,-255.0,0.0004,12]
[312424258,1705870242557,-255.0,0.0004,12]
[312424261,1705870242568,-255.0,0.0004,12]
[312424263,1705870242577,-255.0,0.0004,12]
[312424265,1705870242586,-255.0,0.0004,12]
[312424267,1705870242595,-255.0,0.0004,12]
[312424269,1705870242605,-150.57983549,0.000402,7]
[312424271,1705870242614,-420.64176698,0.00040271,4]
[312424273,1705870242625,-548.92,0.00040349,15]
[312424275,1705870242635,-4108.27131302,0.00040355,14]
[312424277,1705870242646,-22868.46127896,0.00040498,4]
[312424279,1705870242656,-60009.005275,0.000405,2]
[312424281,1705870242665,-169.63,0.000405,7]
[312424283,1705870242675,-602.94,0.000405,7]
[312424285,1705870242684,-150.57983549,0.000405,8]
[312424286,1705870242694,-157.13,0.00040602,2]
[312424288,1705870242703,-257.0,0.0004061,2]
[312424290,1705870242713,-204.0,0.0004065,2]
[312424292,1705870242723,-203.0,0.0004065,2]
[312424294,1705870242732,-312.26205594,0.00040692,10]
[312424296,1705870242742,-1208.97682583,0.00040764,2]
[312424298,1705870242752,-150.57983549,0.000408,9]